[Event "48th Ciutat de Badalona Open 2024"]
[Site "Badalona"]
[Date "2024.08.03"]
[Round "2.6"]
[White "Chavez Suarez, Carlos Alberto"]
[Black "Deepak Ambattu, Rithvik"]
[Result "1-0"]
[ECO "D78"]
[WhiteElo "2279"]
[BlackElo "2079"]
[Annotator "RC"]
[PlyCount "83"]
[EventDate "2024.07.29"]
[EventCountry "ESP"]
[SourceTitle "playchess.com"]
[Source "ChessBase"]
[SourceQuality "1"]
[TimeControl "5400+30"]

1. d4 {[%emt 0:00:18]} Nf6 {[%emt 0:00:14]} 2. Nf3 {[%emt 0:00:13]} g6 {[%emt 0:00:16]} 3. g3 {[%emt 0:00:20]} Bg7 {[%emt 0:00:09]} 4. Bg2 {[%emt 0:00:09]} O-O {[%emt 0:00:29]} 5. c4 {[%emt 0:00:11]} c6 {[%emt 0:00:05]} 6. O-O {[%emt 0:00:08]} d5 {[%emt 0:00:03]} 7. Nbd2 {[%emt 0:01:37]} a5 {[%emt 0:00:23]} 8. b3 {[%emt 0:00:35]} Bf5 {[%emt 0:06:01]} 9. Bb2 {[%emt 0:00:11]} Nbd7 {[%emt 0:07:05]} 10. Nh4 {[%emt 0:04:39]} Be6 {[%emt 0:04:42]} 11. e4 {[%emt 0:02:39]} dxe4 {[%emt 0:03:12]} 12. Nxe4 {[%emt 0:00:07]} Nxe4 {[%emt 0:02:09]} 13. Bxe4 {[%emt 0:00:04]} a4 {[%emt 0:03:57]} 14. Qc2 {[%emt 0:05:17]} axb3 {[%emt 0:05:25]} 15. axb3 {[%emt 0:00:06]} Qb6 {[%emt 0:06:08]} 16. Nf3 {[%emt 0:13:05]} Bg4 {[%emt 0:14:04]} 17. Ne5 {[%emt 0:02:38]} Nxe5 {[%emt 0:03:24]} 18. dxe5 {[%emt 0:00:08]} Qc5 {[%emt 0:05:12]} 19. Qc3 {[%emt 0:01:06]} Rxa1 {[%emt 0:03:16]} 20. Rxa1 {[%emt 0:00:11]} f5 {[%emt 0:04:15]} 21. Bg2 {[%emt 0:02:24]} f4 {[%emt 0:06:06]} 22. b4 {[%emt 0:00:10]} Qb6 {[%emt 0:02:18]} 23. c5 {[%emt 0:00:08]} Qd8 {[%emt 0:02:00]} 24. Qc4+ {[%emt 0:16:26]} Kh8 {[%emt 0:04:02]} 25. gxf4 {[%emt 0:01:04]} Bh6 {[%emt 0:10:42]} 26. b5 {[%emt 0:05:40]} Qc8 {[%emt 0:05:59]} 27. bxc6 {[%emt 0:10:57]} bxc6 {[%emt 0:00:22]} 28. Qe4 {[%emt 0:01:25]} Qb7 {[%emt 0:01:16]} 29. Bc3 {[%emt 0:00:49]} Bxf4 {[%emt 0:00:59]} 30. e6+ {[%emt 0:03:24]} Kg8 {[%emt 0:00:07]} 31. Qd4 {[%emt 0:00:04]} Rf6 {[%emt 0:00:20]} 32. Qd7 {[%emt 0:00:10]} Qxd7 {[%emt 0:01:14]} 33. exd7 {[%emt 0:00:04]} Rf8 {[%emt 0:00:33]} 34. Bxc6 {[%emt 0:00:06]} Rd8 {[%emt 0:00:24]} 35. Ra7 {[%emt 0:01:26]} Rb8 {[%emt 0:00:38]} 36. Ba5 {[%emt 0:00:12]} Rb1+ {[%emt 0:00:29]} 37. Kg2 {[%emt 0:00:05]} Rd1 {[%emt 0:00:29]} 38. d8=Q+ {[%emt 0:00:08]} Rxd8 {[%emt 0:00:08]} 39. Bxd8 {[%emt 0:00:05]} e5 {[%emt 0:00:14]} 40. Bd5+ {[%emt 0:00:12]} Kf8 {[%emt 0:00:07]} 41. Bf6 {[%emt 0:00:05]} Ke8 {[%emt 0:00:18]} 42. c6 {[%emt 0:00:05]} 1-0

[Event "48th Ciutat de Badalona Open 2024"]
[Site "Badalona"]
[Date "2024.08.03"]
[Round "2.7"]
[White "Marabajan Navas, Saul"]
[Black "Nagare Kaivalya Sandip"]
[Result "0-1"]
[ECO "E49"]
[WhiteElo "2077"]
[BlackElo "2273"]
[Annotator "RC"]
[PlyCount "102"]
[EventDate "2024.07.29"]
[EventCountry "ESP"]
[SourceTitle "playchess.com"]
[Source "ChessBase"]
[SourceQuality "1"]
[TimeControl "5400+30"]

1. d4 {[%emt 0:00:02]} Nf6 {[%emt 0:00:35]} 2. c4 {[%emt 0:00:05]} e6 {[%emt 0:00:13]} 3. Nc3 {[%emt 0:00:16]} Bb4 {[%emt 0:00:04]} 4. e3 {[%emt 0:01:40]} O-O {[%emt 0:00:20]} 5. Bd3 {[%emt 0:01:38]} d5 {[%emt 0:00:16]} 6. a3 {[%emt 0:00:39]} Bxc3+ {[%emt 0:00:40]} 7. bxc3 {[%emt 0:00:06]} c5 {[%emt 0:01:57]} 8. Ne2 {[%emt 0:01:21]} Qc7 {[%emt 0:00:14]} 9. cxd5 {[%emt 0:00:35]} exd5 {[%emt 0:00:18]} 10. O-O {[%emt 0:01:23]} b6 {[%emt 0:00:46]} 11. f3 {[%emt 0:02:05]} Bb7 {[%emt 0:05:34]} 12. Ng3 {[%emt 0:02:23]} Re8 {[%emt 0:00:57]} 13. Ra2 {[%emt 0:01:02]} Nc6 {[%emt 0:05:02]} 14. Raf2 {[%emt 0:03:58]} Rad8 {[%emt 0:01:24]} 15. Qd2 {[%emt 0:02:44]} Na5 {[%emt 0:06:06]} 16. Qb2 {[%emt 0:05:22]} Rd7 {[%emt 0:12:03]} 17. Re1 {[%emt 0:04:04]} Rde7 {[%emt 0:01:32]} 18. Rfe2 {[%emt 0:01:07]} cxd4 {[%emt 0:09:47]} 19. cxd4 {[%emt 0:00:31]} Nc4 {[%emt 0:00:25]} 20. Qb1 {[%emt 0:06:50]} Nd6 {[%emt 0:00:43]} 21. a4 {[%emt 0:03:26]} Re6 {[%emt 0:01:05]} 22. Bb2 {[%emt 0:02:51]} h5 {[%emt 0:01:09]} 23. Nh1 {[%emt 0:03:15]} Bc6 {[%emt 0:06:25]} 24. Nf2 {[%emt 0:11:23]} Qb7 {[%emt 0:02:33]} 25. Qc2 {[%emt 0:04:40]} b5 {[%emt 0:00:10]} 26. axb5 {[%emt 0:00:42]} Bxb5 {[%emt 0:00:04]} 27. Bxb5 {[%emt 0:08:56]} Qxb5 {[%emt 0:00:05]} 28. Nd3 {[%emt 0:00:20]} Nc4 {[%emt 0:03:20]} 29. Bc1 {[%emt 0:00:20]} Rc6 {[%emt 0:03:32]} 30. Qd1 {[%emt 0:02:30]} Rd8 {[%emt 0:01:35]} 31. h3 {[%emt 0:02:02]} a5 {[%emt 0:00:11]} 32. g4 {[%emt 0:00:13]} a4 {[%emt 0:03:13]} 33. Nf4 {[%emt 0:04:52]} a3 {[%emt 0:00:32]} 34. Qd3 {[%emt 0:02:01]} Ra8 {[%emt 0:00:47]} 35. Ra2 {[%emt 0:00:23]} Rb6 {[%emt 0:00:38]} 36. g5 {[%emt 0:22:45]} Nd7 {[%emt 0:01:10]} 37. Nxh5 {[%emt 0:00:00]} Qb1 {[%emt 0:00:13]} 38. Qxb1 {[%emt 0:00:00]} Rxb1 {[%emt 0:00:03]} 39. Kf2 {[%emt 0:00:00]} Nb2 {[%emt 0:09:45]} 40. Bxb2 {[%emt 0:00:00]} Rxb2+ {[%emt 0:00:04]} 41. Re2 {[%emt 0:00:00]} Rb3 {[%emt 0:01:48]} 42. Nf4 {[%emt 0:00:00]} Nb6 {[%emt 0:00:02]} 43. Rec2 {[%emt 0:00:00]} Re8 {[%emt 0:01:39]} 44. Re2 {[%emt 0:00:00]} Rc8 {[%emt 0:00:02]} 45. g6 {[%emt 0:00:00]} fxg6 {[%emt 0:00:46]} 46. Nxg6 {[%emt 0:00:00]} Rc1 {[%emt 0:00:18]} 47. Ne5 {[%emt 0:00:00]} Na4 {[%emt 0:00:26]} 48. Nd7 {[%emt 0:00:00]} Nc3 {[%emt 0:01:10]} 49. Nc5 {[%emt 0:00:00]} Rb2 {[%emt 0:00:02]} 50. Nd3 {[%emt 0:00:00]} Rxe2+ {[%emt 0:00:10]} 51. Rxe2 {[%emt 0:00:00]} Nxe2 {[%emt 0:00:03]} 0-1

[Event "48th Ciutat de Badalona Open 2024"]
[Site "Badalona"]
[Date "2024.08.03"]
[Round "2.8"]
[White "Blasco Coll, Andreu"]
[Black "Sviridenko, Yaroslav"]
[Result "1/2-1/2"]
[ECO "C02"]
[WhiteElo "2260"]
[BlackElo "2076"]
[Annotator "RC"]
[PlyCount "127"]
[EventDate "2024.07.29"]
[EventCountry "ESP"]
[SourceTitle "playchess.com"]
[Source "ChessBase"]
[SourceQuality "1"]
[TimeControl "5400+30"]

1. e4 {[%emt 0:00:03]} e6 {[%emt 0:00:32]} 2. d4 {[%emt 0:00:07]} d5 {[%emt 0:00:05]} 3. e5 {[%emt 0:00:13]} c5 {[%emt 0:00:07]} 4. c3 {[%emt 0:00:10]} Nc6 {[%emt 0:00:06]} 5. Nf3 {[%emt 0:00:12]} Nge7 {[%emt 0:00:59]} 6. Na3 {[%emt 0:01:28]} Bd7 {[%emt 0:00:26]} 7. Be2 {[%emt 0:00:25]} Nf5 {[%emt 0:04:22]} 8. Nc2 {[%emt 0:01:18]} Be7 {[%emt 0:03:26]} 9. O-O {[%emt 0:00:39]} O-O {[%emt 0:00:26]} 10. Re1 {[%emt 0:04:20]} b5 {[%emt 0:10:10]} 11. dxc5 {[%emt 0:08:43]} Bxc5 {[%emt 0:00:51]} 12. b4 {[%emt 0:00:46]} Be7 {[%emt 0:05:51]} 13. Bd3 {[%emt 0:02:08]} a5 {[%emt 0:12:08]} 14. a3 {[%emt 0:06:34]} g6 {[%emt 0:05:52]} 15. Bxf5 {[%emt 0:07:44]} gxf5 {[%emt 0:00:11]} 16. Bh6 {[%emt 0:00:24]} Re8 {[%emt 0:00:33]} 17. Ncd4 {[%emt 0:05:31]} Nxd4 {[%emt 0:07:26]} 18. Nxd4 {[%emt 0:00:19]} Bg5 {[%emt 0:06:19]} 19. Bxg5 {[%emt 0:00:53]} Qxg5 {[%emt 0:00:09]} 20. Qd3 {[%emt 0:06:47]} Rec8 {[%emt 0:02:52]} 21. Nb3 {[%emt 0:03:15]} axb4 {[%emt 0:00:55]} 22. axb4 {[%emt 0:00:11]} Rxa1 {[%emt 0:00:34]} 23. Rxa1 {[%emt 0:00:12]} Rc4 {[%emt 0:02:37]} 24. Nd4 {[%emt 0:12:32]} f4 {[%emt 0:05:02]} 25. Nf3 {[%emt 0:07:53]} Qg6 {[%emt 0:02:27]} 26. Qxg6+ {[%emt 0:06:18]} hxg6 {[%emt 0:00:35]} 27. Ra3 {[%emt 0:00:27]} Kf8 {[%emt 0:03:41]} 28. Nd2 {[%emt 0:01:11]} Rc7 {[%emt 0:00:13]} 29. g3 {[%emt 0:00:40]} fxg3 {[%emt 0:00:45]} 30. hxg3 {[%emt 0:00:05]} Ke7 {[%emt 0:00:26]} 31. f4 {[%emt 0:00:24]} f6 {[%emt 0:00:20]} 32. Nf3 {[%emt 0:00:25]} fxe5 {[%emt 0:05:03]} 33. fxe5 {[%emt 0:01:16]} Rc4 {[%emt 0:02:32]} 34. Nd4 {[%emt 0:00:40]} g5 {[%emt 0:00:32]} 35. Kf2 {[%emt 0:00:44]} Rc7 {[%emt 0:00:21]} 36. Ke2 {[%emt 0:02:46]} Kf7 {[%emt 0:01:01]} 37. Kd2 {[%emt 0:00:53]} Kg6 {[%emt 0:02:13]} 38. g4 {[%emt 0:01:42]} Kf7 {[%emt 0:01:08]} 39. Ra8 {[%emt 0:01:24]} Be8 {[%emt 0:04:21]} 40. Kc2 {[%emt 0:02:50]} Ke7 {[%emt 0:00:51]} 41. Ra6 {[%emt 0:00:41]} Bd7 {[%emt 0:00:22]} 42. Kb3 {[%emt 0:01:25]} Rb7 {[%emt 0:01:02]} 43. Ra8 {[%emt 0:00:49]} Be8 {[%emt 0:01:07]} 44. Nf3 {[%emt 0:00:49]} Rc7 {[%emt 0:00:05]} 45. Nd4 {[%emt 0:01:37]} Rc4 {[%emt 0:01:16]} 46. Rb8 {[%emt 0:01:41]} Rxd4 {[%emt 0:02:01]} 47. cxd4 {[%emt 0:00:12]} Kf7 {[%emt 0:01:24]} 48. Rb7+ {[%emt 0:00:34]} Kg8 {[%emt 0:01:17]} 49. Kc3 {[%emt 0:02:03]} Kf8 {[%emt 0:00:40]} 50. Rh7 {[%emt 0:01:51]} Kg8 {[%emt 0:00:47]} 51. Re7 {[%emt 0:02:49]} Bf7 {[%emt 0:00:11]} 52. Rb7 {[%emt 0:01:05]} Be8 {[%emt 0:00:05]} 53. Rb6 {[%emt 0:00:06]} Kf7 {[%emt 0:00:12]} 54. Kd2 {[%emt 0:00:42]} Ke7 {[%emt 0:00:27]} 55. Ra6 {[%emt 0:02:41]} Kf7 {[%emt 0:00:17]} 56. Ra1 {[%emt 0:00:19]} Kg8 {[%emt 0:00:42]} 57. Ke3 {[%emt 0:00:17]} Kf7 {[%emt 0:00:39]} 58. Rf1+ {[%emt 0:00:10]} Kg7 {[%emt 0:00:53]} 59. Rf6 {[%emt 0:00:13]} Bf7 {[%emt 0:00:15]} 60. Kf3 {[%emt 0:00:05]} Kg8 {[%emt 0:00:50]} 61. Kg3 {[%emt 0:00:30]} Kg7 {[%emt 0:00:23]} 62. Rf2 {[%emt 0:01:27]} Kg8 {[%emt 0:00:39]} 63. Ra2 {[%emt 0:02:12]} Be8 {[%emt 0:00:20]} 64. Ra8 {[%emt 0:00:49]} 1/2-1/2

[Event "48th Ciutat de Badalona Open 2024"]
[Site "Badalona"]
[Date "2024.08.03"]
[Round "2.10"]
[White "Daimiel Bescos, Eleuterio"]
[Black "Roig Martinez, Salvador"]
[Result "1-0"]
[ECO "B33"]
[WhiteElo "1895"]
[BlackElo "1756"]
[Annotator "NA RC"]
[PlyCount "91"]
[EventDate "2024.07.29"]
[EventCountry "ESP"]
[SourceTitle "playchess.com"]
[Source "ChessBase"]
[SourceQuality "1"]
[TimeControl "5400+30"]

1. e4 {[%emt 0:00:08]} c5 {[%emt 0:00:30]} 2. Nf3 {[%emt 0:00:36]} Nc6 {[%emt 0:00:20]} 3. d4 {[%emt 0:01:16]} cxd4 {[%emt 0:00:23]} 4. Nxd4 {[%emt 0:00:12]} e5 {[%emt 0:01:03]} 5. Nb5 {[%emt 0:01:10]} d6 {[%emt 0:01:41]} 6. a4 {[%emt 0:01:30]} a6 {[%emt 0:01:59]} 7. N5a3 {[%emt 0:00:17]} Nf6 {[%emt 0:01:32]} 8. Nc3 {[%emt 0:02:52]} Be7 {[%emt 0:01:12]} 9. Bc4 {[%emt 0:07:08]} Be6 {[%emt 0:08:08]} 10. O-O {[%emt 0:01:12]} O-O {[%emt 0:01:31]} 11. Be3 {[%emt 0:07:28]} Na5 {[%emt 0:08:55]} 12. Ba2 {[%emt 0:07:12]} Bxa2 {[%emt 0:05:26]} 13. Rxa2 {[%emt 0:00:29]} Rc8 {[%emt 0:01:39]} 14. Qd3 {[%emt 0:00:32]} Nc6 {[%emt 0:05:32]} 15. Raa1 {[%emt 0:03:26]} Qc7 {[%emt 0:04:55]} 16. Rad1 {[%emt 0:02:05]} Rfd8 {[%emt 0:00:46]} 17. Qe2 {[%emt 0:02:52]} Nb4 {[%emt 0:02:25]} 18. Bg5 {[%emt 0:03:15]} Ne8 {[%emt 0:04:04]} 19. Bxe7 {[%emt 0:06:58]} Qxe7 {[%emt 0:00:18]} 20. Rd2 {[%emt 0:01:06]} Qe6 {[%emt 0:04:06]} 21. Rfd1 {[%emt 0:00:41]} Nf6 {[%emt 0:04:43]} 22. Qe3 {[%emt 0:02:51]} Rc6 {[%emt 0:04:04]} 23. Nd5 {[%emt 0:01:24]} a5 {[%emt 0:01:22]} 24. c3 {[%emt 0:00:50]} Na6 {[%emt 0:00:53]} 25. b4 {[%emt 0:07:47]} axb4 {[%emt 0:02:37]} 26. cxb4 {[%emt 0:00:56]} Rcc8 {[%emt 0:02:41]} 27. b5 {[%emt 0:07:19]} Nc5 {[%emt 0:00:53]} 28. Nb6 {[%emt 0:00:35]} Ncxe4 {[%emt 0:04:36]} 29. Rd3 {[%emt 0:06:50]} Nc5 {[%emt 0:04:46]} 30. R3d2 {[%emt 0:01:58]} Nce4 {[%emt 0:02:06]} 31. Rd3 {[%emt 0:01:51]} Rb8 {[%emt 0:02:49]} 32. a5 {[%emt 0:03:35]} Qe7 {[%emt 0:03:40]} 33. Nac4 {[%emt 0:01:25]} Nc5 {[%emt 0:03:05]} 34. Rxd6 {[%emt 0:01:56]} Rxd6 {[%emt 0:00:30]} 35. Rxd6 {[%emt 0:00:51]} Ncd7 {[%emt 0:00:32]} 36. h3 {[%emt 0:02:49]} h6 {[%emt 0:00:24]} 37. Nxd7 {[%emt 0:03:08]} Nxd7 {[%emt 0:00:40]} 38. Qe4 {[%emt 0:01:32]} Nc5 {[%emt 0:05:14]} 39. Qxe5 {[%emt 0:01:21]} Qxe5 {[%emt 0:00:51]} 40. Nxe5 {[%emt 0:00:13]} Nb3 {[%emt 0:00:12]} 41. a6 {[%emt 0:01:00]} bxa6 {[%emt 0:00:49]} 42. bxa6 {[%emt 0:00:35]} Nc5 {[%emt 0:01:36]} 43. a7 {[%emt 0:03:20]} Ra8 {[%emt 0:01:23]} 44. Nc6 {[%emt 0:00:16]} Ne6 {[%emt 0:01:00]} 45. Rd7 {[%emt 0:00:27]} Kf8 {[%emt 0:01:37]} 46. Rb7 {[%emt 0:06:16]} 1-0

[Event "48th Ciutat de Badalona Open 2024"]
[Site "Badalona"]
[Date "2024.08.04"]
[Round "3.1"]
[White "Iglesias Romero, Jorge"]
[Black "Berdayes Ason, Dylan Isidro"]
[Result "0-1"]
[ECO "D00"]
[WhiteElo "2271"]
[BlackElo "2476"]
[Annotator "RC"]
[PlyCount "70"]
[EventDate "2024.07.29"]
[EventCountry "ESP"]
[SourceTitle "playchess.com"]
[Source "ChessBase"]
[SourceQuality "1"]
[TimeControl "5400+30"]

1. d4 {[%emt 1:31:00]} Nf6 {[%emt 0:04:11]} 2. Bf4 {[%emt 0:00:30]} d5 {[%emt 0:00:11]} 3. e3 {[%emt 0:00:30]} c5 {[%emt 0:01:14]} 4. c3 {[%emt 0:00:00]} Nc6 {[%emt 0:00:11]} 5. Nd2 {[%emt 0:00:00]} Bf5 {[%emt 0:03:00]} 6. Qb3 {[%emt 0:01:30]} Qd7 {[%emt 1:24:43]} 7. Ngf3 {[%emt 0:00:00]} c4 8. Qd1 {[%emt 0:01:00]} e6 {[%emt 0:00:00]} 9. Nh4 {[%emt 0:00:00]} Bg4 10. Qc2 {[%emt 0:01:00]} Rc8 {[%emt 0:02:00]} 11. h3 {[%emt 0:00:00]} Bh5 {[%emt 0:00:00]} 12. g4 {[%emt 0:00:00]} Bg6 {[%emt 0:00:00]} 13. Nxg6 {[%emt 0:00:00]} hxg6 {[%emt 0:00:00]} 14. Bg2 {[%emt 0:00:00]} Bd6 {[%emt 0:02:00]} 15. Bxd6 {[%emt 0:00:00]} Qxd6 {[%emt 0:00:00]} 16. e4 {[%emt 0:03:00]} Qf4 {[%emt 0:00:00]} 17. e5 {[%emt 0:00:00]} Nd7 {[%emt 0:00:00]} 18. Nf3 {[%emt 0:00:00]} b5 {[%emt 0:00:00]} 19. Qd2 {[%emt 0:00:00]} Qxd2+ {[%emt 0:00:00]} 20. Kxd2 {[%emt 0:02:00]} f6 {[%emt 0:03:00]} 21. exf6 {[%emt 0:00:00]} gxf6 {[%emt 0:00:00]} 22. Rae1 {[%emt 0:00:00]} Ke7 {[%emt 0:00:00]} 23. h4 {[%emt 0:00:00]} Kd6 {[%emt 0:00:00]} 24. g5 {[%emt 0:00:00]} Rcf8 {[%emt 0:00:00]} 25. Bh3 {[%emt 0:00:00]} f5 {[%emt 0:00:00]} 26. Bg2 {[%emt 0:00:00]} e5 {[%emt 0:00:00]} 27. h5 {[%emt 0:00:00]} gxh5 {[%emt 0:00:00]} 28. Nh4 {[%emt 0:00:00]} Rhg8 {[%emt 0:00:00]} 29. g6 {[%emt 0:00:00]} exd4 {[%emt 0:00:00]} 30. Bh3 {[%emt 0:00:00]} Nde5 {[%emt 0:00:00]} 31. Rhg1 {[%emt 0:00:00]} dxc3+ {[%emt 0:00:00]} 32. bxc3 {[%emt 0:00:00]} Ne7 {[%emt 0:00:00]} 33. Rg5 {[%emt 0:01:23]} N5xg6 {[%emt 0:00:00]} 34. Rxh5 {[%emt 0:00:29]} Nxh4 {[%emt 0:00:00]} 35. Rxh4 {[%emt 0:00:07]} Rh8 {[%emt 0:00:00]} 0-1

[Event "48th Ciutat de Badalona Open 2024"]
[Site "Badalona"]
[Date "2024.08.04"]
[Round "3.2"]
[White "Pawar, Harshit"]
[Black "Perpinya Rofes, Lluis Maria"]
[Result "1/2-1/2"]
[ECO "B23"]
[WhiteElo "2284"]
[BlackElo "2189"]
[Annotator "RC"]
[PlyCount "97"]
[EventDate "2024.07.29"]
[EventCountry "ESP"]
[SourceTitle "playchess.com"]
[Source "ChessBase"]
[SourceQuality "1"]
[TimeControl "5400+30"]

1. e4 {[%emt 0:00:43]} c5 {[%emt 0:00:11]} 2. Nc3 {[%emt 0:00:03]} Nc6 {[%emt 0:00:23]} 3. Bb5 {[%emt 0:00:02]} Nd4 {[%emt 0:00:30]} 4. Bc4 {[%emt 0:00:02]} e6 {[%emt 0:00:40]} 5. Nge2 {[%emt 0:00:01]} Nf6 {[%emt 0:00:33]} 6. O-O {[%emt 0:00:03]} b5 {[%emt 0:01:04]} 7. Nxd4 {[%emt 0:00:02]} bxc4 {[%emt 0:00:26]} 8. Nf3 {[%emt 0:00:02]} Be7 {[%emt 0:01:10]} 9. Qe2 {[%emt 0:03:04]} O-O {[%emt 0:12:07]} 10. Ne5 {[%emt 0:04:07]} Bb7 {[%emt 0:16:57]} 11. Nxc4 {[%emt 0:03:25]} d5 {[%emt 0:02:46]} 12. exd5 {[%emt 0:00:52]} exd5 {[%emt 0:00:58]} 13. Na5 {[%emt 0:10:08]} Qxa5 {[%emt 0:00:42]} 14. Qxe7 {[%emt 0:00:03]} Ba6 {[%emt 0:12:59]} 15. d3 {[%emt 0:00:39]} Rfe8 {[%emt 0:01:07]} 16. Qd6 {[%emt 0:00:55]} Rad8 {[%emt 0:07:19]} 17. Qg3 {[%emt 0:01:02]} d4 {[%emt 0:01:10]} 18. Bg5 {[%emt 0:00:51]} Kh8 {[%emt 0:38:28]} 19. Bxf6 {[%emt 0:00:48]} gxf6 {[%emt 0:00:00]} 20. Ne4 {[%emt 0:00:59]} Rxe4 {[%emt 0:00:00]} 21. dxe4 {[%emt 0:00:02]} Bxf1 {[%emt 0:00:00]} 22. Rxf1 {[%emt 0:01:02]} c4 {[%emt 0:00:00]} 23. h4 {[%emt 0:10:16]} d3 {[%emt 0:00:00]} 24. cxd3 {[%emt 0:01:10]} cxd3 {[%emt 0:00:00]} 25. Qf4 {[%emt 0:01:07]} Kg7 {[%emt 0:00:00]} 26. a3 {[%emt 0:00:35]} Qh5 {[%emt 0:00:00]} 27. Qc7 {[%emt 0:01:16]} Rd4 {[%emt 0:00:00]} 28. Qg3+ {[%emt 0:03:14]} Kf8 {[%emt 0:01:22]} 29. Qe3 {[%emt 0:08:22]} Rd7 {[%emt 0:02:02]} 30. f3 {[%emt 0:00:30]} Qb5 {[%emt 0:01:37]} 31. Rf2 {[%emt 0:01:36]} Kg7 {[%emt 0:00:36]} 32. Rd2 {[%emt 0:00:33]} a5 {[%emt 0:00:22]} 33. Kf2 {[%emt 0:01:57]} a4 {[%emt 0:00:13]} 34. f4 {[%emt 0:00:26]} Qc4 {[%emt 0:00:28]} 35. Kg3 {[%emt 0:01:30]} Rd4 {[%emt 0:00:42]} 36. Kf3 {[%emt 0:00:21]} Rd7 {[%emt 0:00:46]} 37. Qe1 {[%emt 0:01:16]} Rb7 {[%emt 0:00:29]} 38. g4 {[%emt 0:00:43]} h6 {[%emt 0:00:27]} 39. e5 {[%emt 0:01:25]} fxe5 {[%emt 0:00:53]} 40. Qxe5+ {[%emt 0:00:20]} Kg8 {[%emt 0:00:10]} 41. Qe8+ {[%emt 0:13:30]} Kg7 {[%emt 0:00:11]} 42. Qe4 {[%emt 0:01:51]} Qc1 {[%emt 0:00:37]} 43. Qd4+ {[%emt 0:00:36]} Kg8 {[%emt 0:00:49]} 44. Rxd3 {[%emt 0:00:44]} Rxb2 {[%emt 0:00:29]} 45. Ke4 {[%emt 0:05:15]} Re2+ {[%emt 0:00:33]} 46. Kf5 {[%emt 0:02:25]} Qc8+ {[%emt 0:00:33]} 47. Qd7 {[%emt 0:00:06]} Qc5+ {[%emt 0:00:21]} 48. Qd5 {[%emt 0:00:47]} Qc8+ {[%emt 0:00:29]} 49. Qd7 {[%emt 0:00:06]} 1/2-1/2

[Event "48th Ciutat de Badalona Open 2024"]
[Site "Badalona"]
[Date "2024.08.04"]
[Round "3.3"]
[White "Nieto Farreny, Francesc"]
[Black "Chavez Suarez, Carlos Alberto"]
[Result "0-1"]
[ECO "D64"]
[WhiteElo "2182"]
[BlackElo "2279"]
[Annotator "RC"]
[PlyCount "84"]
[EventDate "2024.07.29"]
[EventCountry "ESP"]
[SourceTitle "playchess.com"]
[Source "ChessBase"]
[SourceQuality "1"]
[TimeControl "5400+30"]

1. d4 {[%emt 0:00:34]} Nf6 {[%emt 0:00:15]} 2. c4 {[%emt 0:01:40]} e6 {[%emt 0:00:17]} 3. Nc3 {[%emt 0:00:18]} d5 {[%emt 1:31:28]} 4. Bg5 {[%emt 0:00:33]} c6 {[%emt 0:00:30]} 5. e3 {[%emt 0:00:30]} Nbd7 {[%emt 0:00:30]} 6. Nf3 {[%emt 0:01:12]} a6 {[%emt 0:00:30]} 7. Rc1 {[%emt 0:00:53]} Be7 {[%emt 0:00:30]} 8. Qc2 {[%emt 0:01:15]} O-O {[%emt 0:00:00]} 9. Bd3 {[%emt 1:28:05]} dxc4 {[%emt 0:00:00]} 10. Bxc4 {[%emt 0:00:30]} b5 {[%emt 0:00:00]} 11. Bd3 {[%emt 0:00:00]} c5 {[%emt 0:02:00]} 12. Bxf6 {[%emt 0:00:00]} Nxf6 {[%emt 0:00:00]} 13. dxc5 {[%emt 0:00:00]} Bxc5 {[%emt 0:00:00]} 14. Ng5 h6 {[%emt 0:01:30]} 15. h4 {[%emt 0:02:30]} Bb7 {[%emt 0:00:00]} 16. Bh7+ {[%emt 0:00:00]} Kh8 {[%emt 0:00:00]} 17. Be4 {[%emt 0:01:00]} Nxe4 {[%emt 0:01:30]} 18. Ncxe4 {[%emt 0:00:30]} Bb4+ {[%emt 0:00:30]} 19. Nc3 {[%emt 0:00:00]} g6 {[%emt 0:00:00]} 20. a3 {[%emt 0:01:00]} Be7 {[%emt 0:00:00]} 21. Nf3 {[%emt 0:00:00]} Rc8 {[%emt 0:00:00]} 22. h5 {[%emt 0:00:00]} g5 {[%emt 0:00:00]} 23. O-O {[%emt 0:00:00]} Bd6 {[%emt 0:00:00]} 24. Rfd1 {[%emt 0:00:00]} Qe7 {[%emt 0:00:00]} 25. Nd4 {[%emt 0:00:00]} g4 {[%emt 0:00:00]} 26. Nde2 {[%emt 0:00:00]} Be5 {[%emt 0:00:00]} 27. Nf4 {[%emt 0:00:00]} Rg8 {[%emt 0:00:00]} 28. g3 {[%emt 0:00:00]} Rg5 {[%emt 0:00:00]} 29. Qd3 {[%emt 0:00:00]} Bxf4 {[%emt 0:00:00]} 30. exf4 {[%emt 0:00:00]} Rxh5 {[%emt 0:00:00]} 31. Ne4 {[%emt 0:00:00]} Rxc1 {[%emt 0:00:00]} 32. Rxc1 {[%emt 0:00:00]} f5 {[%emt 0:00:00]} 33. Qd4+ {[%emt 0:00:00]} e5 {[%emt 0:00:00]} 34. fxe5 {[%emt 0:00:00]} Bxe4 {[%emt 0:00:00]} 35. e6+ {[%emt 0:00:00]} Kh7 {[%emt 0:00:00]} 36. f3 {[%emt 0:00:00]} Bxf3 {[%emt 0:00:00]} 37. Qd7 {[%emt 0:00:00]} Rh1+ {[%emt 0:00:00]} 38. Kf2 {[%emt 0:00:00]} Rh2+ {[%emt 0:00:00]} 39. Kg1 {[%emt 0:00:00]} Qxd7 {[%emt 0:00:00]} 40. exd7 {[%emt 0:00:00]} Rd2 {[%emt 0:00:00]} 41. Rc7 {[%emt 0:00:00]} Kg6 {[%emt 0:00:00]} 42. Ra7 {[%emt 0:00:00]} Kg5 {[%emt 0:00:00]} 0-1